fUSD/lending_fUSD_20250504
["ID","MTS","AMOUNT","RATE_DAILY","PERIOD"]
[359846928,1746371442141,-450.0,0.00019726,2]
[359846929,1746371442153,-494.96,0.00019726,2]
[359846930,1746371442163,-410.94,0.00019726,2]
[359846931,1746371442173,-450.0,0.00019726,2]
[359846932,1746371442185,-450.0,0.00019726,2]
[359846933,1746371442196,-450.0,0.00019726,2]
[359846934,1746371442208,-450.0,0.00019726,2]
[359846935,1746371442220,-450.0,0.00019726,2]
[359846936,1746371442230,-450.0,0.00019726,2]
[359846937,1746371442241,-450.0,0.00019726,2]
[359846938,1746371442251,-450.0,0.00019726,2]
[359846939,1746371442262,-450.0,0.00019726,2]
[359846940,1746371442272,-875.32,0.00019726,2]
[359846941,1746371442283,-450.0,0.00019726,2]
[359846942,1746371442294,-450.0,0.00019726,2]
[359846943,1746371442304,-527.66,0.00019726,2]
[359846944,1746371442314,-450.0,0.00019726,2]
[359846945,1746371442325,-463.33,0.00019726,2]
[359846946,1746371442335,-450.0,0.00019726,2]
[359846947,1746371442346,-161.78,0.00019726,2]
[359846948,1746371442356,-474.6439651,0.00019726,2]
[359846949,1746371442367,-450.0,0.00019726,2]
[359846950,1746371442378,-450.0,0.00019726,2]
[359846951,1746371442388,-450.0,0.00019726,2]
[359846952,1746371442399,-526.23,0.00019726,2]
[359846953,1746371442410,-450.0,0.00019726,2]
[359846954,1746371442420,-450.0,0.00019726,2]
[359846955,1746371442434,-450.0,0.00019726,2]
[359846956,1746371442444,-226.88,0.00019726,2]
[359846957,1746371442454,-450.0,0.00019726,2]
[359846958,1746371442465,-30743.51,0.00019726,2]
[359846959,1746371442477,-450.0,0.00019726,2]
[359846960,1746371442488,-610.51,0.00019726,2]
[359846961,1746371442499,-450.0,0.00019726,2]
[359846962,1746371442512,-450.0,0.00019726,2]
[359846963,1746371442523,-450.0,0.00019726,2]
[359846964,1746371442534,-450.0,0.00019726,2]
[359846965,1746371442544,-450.0,0.00019726,2]
[359846967,1746371442555,-450.0,0.00019726,2]
[359846969,1746371442566,-450.0,0.00019726,2]
[359846970,1746371442577,-450.0,0.00019726,2]
[359846971,1746371442588,-450.0,0.00019726,2]
[359846972,1746371442600,-574.65,0.00019726,2]
[359846973,1746371442611,-450.0,0.00019726,2]
[359846974,1746371442622,-450.0,0.00019726,2]
[359846975,1746371442632,-450.0,0.00019726,2]
[359846976,1746371442643,-470.0,0.00019726,2]
[359846977,1746371442653,-450.0,0.00019726,2]
[359846978,1746371442663,-470.0,0.00019726,2]
[359846979,1746371442674,-470.0,0.00019726,2]
[359846980,1746371442684,-450.0,0.00019726,2]
[359846981,1746371442694,-450.0,0.00019726,2]
[359846982,1746371442704,-931.48,0.00019726,2]
[359846983,1746371442715,-450.0,0.00019726,2]
[359846984,1746371442725,-348.69917208,0.00019726,2]
[359846985,1746371442736,-1190.44,0.00019726,2]
[359846986,1746371442745,-510.51701814,0.00019726,2]
[359846987,1746371442755,-450.0,0.00019726,2]
[359846988,1746371442764,-450.0,0.00019726,2]
[359846989,1746371442774,-450.0,0.00019726,2]
[359846990,1746371442783,-470.0,0.00019726,2]
[359846991,1746371442792,-450.0,0.00019726,2]
[359846992,1746371442802,-450.0,0.00019726,2]
[359846993,1746371442811,-500.0,0.00019726,2]
[359846994,1746371443068,-450.0,0.00019726,2]
[359846995,1746371443083,-450.0,0.00019726,2]
[359846996,1746371443093,-450.0,0.00019726,2]
[359846997,1746371443103,-450.0,0.00019726,2]
[359846998,1746371443114,-450.0,0.00019726,2]
[359846999,1746371443124,-450.0,0.00019726,2]
[359847000,1746371443134,-466.414575,0.00019726,2]
[359847001,1746371443144,-450.0,0.00019726,2]
[359847002,1746371443154,-450.0,0.00019726,2]
[359847003,1746371443163,-450.0,0.00019726,2]
[359847004,1746371443172,-486.820692,0.00019726,2]
[359847005,1746371443181,-450.0,0.00019726,2]
[359847006,1746371443192,-450.0,0.00019726,2]
[359847007,1746371443201,-156.74,0.00019726,2]
[359847008,1746371443211,-567.05,0.00019726,2]
[359847009,1746371443221,-450.0,0.00019726,2]
[359847010,1746371443230,-490.0,0.00019726,2]
[359847011,1746371443239,-450.0,0.00019726,2]
[359847012,1746371443249,-450.0,0.00019726,2]
[359847013,1746371443258,-568.16,0.00019726,2]
[359847014,1746371443267,-450.0,0.00019726,2]
[359847015,1746371443277,-450.0,0.00019726,2]
[359847016,1746371443287,-150.0,0.00019737,2]
[359847017,1746371443296,-150.0,0.00019739,2]
[359847018,1746371443306,-150.0,0.0001974,2]
[359847019,1746371443316,-169.66584874,0.0001974,2]
[359847020,1746371443326,-177.61409827,0.0001974,2]
[359847021,1746371443335,-150.0,0.00019742,2]
[359847022,1746371443344,-299.6,0.00019743,2]
[359847023,1746371443354,-150.0,0.00019745,2]
[359847024,1746371443364,-150.0,0.00019749,2]
[359847025,1746371443374,-150.0,0.0001975,2]
[359847026,1746371443383,-150.0,0.00019752,2]
[359847027,1746371443392,-500.0,0.00019752,2]
[359847028,1746371443401,-490.0,0.00019753,2]
[359847029,1746371443411,-450.0,0.00019753,2]
[359847030,1746371443420,-450.0,0.00019753,2]
[359847031,1746371443432,-289.39,0.00019753,2]
[359847032,1746371443442,-334.05,0.00019753,2]
[359847033,1746371443451,-450.0,0.00019753,2]
[359847034,1746371443460,-462.73,0.00019753,2]
[359847035,1746371443471,-450.0,0.00019753,2]
[359847036,1746371443480,-450.0,0.00019753,2]
[359847037,1746371443490,-476.54,0.00019753,2]
[359847038,1746371443500,-274.9,0.00019753,2]
[359847039,1746371443510,-478.04,0.00019753,2]
[359847040,1746371443520,-450.0,0.00019753,2]
[359847041,1746371443529,-450.0,0.00019753,2]
[359847042,1746371443538,-450.0,0.00019753,2]
[359847043,1746371443548,-450.0,0.00019753,2]
[359847044,1746371443557,-213.91,0.00019753,2]
[359847045,1746371443567,-409.55,0.00019753,2]
[359847046,1746371443577,-450.0,0.00019753,2]
[359847047,1746371443587,-450.0,0.00019753,2]
[359847048,1746371443596,-450.0,0.00019753,2]
[359847049,1746371443605,-340.09,0.00019753,2]
[359847050,1746371443615,-450.0,0.00019753,2]
[359847051,1746371443624,-368.88,0.00019753,2]
[359847052,1746371443634,-1166.68,0.00019753,2]
[359847053,1746371443644,-450.0,0.00019753,2]
[359847054,1746371443654,-450.0,0.00019753,2]
[359847055,1746371443663,-470.0,0.00019753,2]
[359847056,1746371443672,-450.0,0.00019753,2]
[359847057,1746371443682,-595.11455112,0.00019753,2]
[359847058,1746371443691,-450.0,0.00019753,2]
[359847059,1746371443700,-278.03545382,0.00019753,2]
[359847060,1746371443709,-450.0,0.00019753,2]
[359847061,1746371443718,-450.0,0.00019753,2]
[359847062,1746371443727,-480.82699754,0.00019753,2]
[359847063,1746371443736,-450.0,0.00019753,2]
[359847064,1746371443745,-450.0,0.00019753,2]
[359847065,1746371443754,-450.0,0.00019753,2]
[359847066,1746371443764,-496.59,0.00019753,2]
[359847067,1746371443773,-1138.88,0.00019753,2]
[359847068,1746371443782,-450.0,0.00019753,2]
[359847069,1746371443791,-450.0,0.00019753,2]
[359847070,1746371443801,-450.0,0.00019753,2]
[359847071,1746371443811,-450.0,0.00019753,2]
[359847072,1746371443821,-450.0,0.00019753,2]
[359847073,1746371443830,-721.57,0.00019753,2]
[359847074,1746371443841,-450.0,0.00019753,2]
[359847075,1746371443850,-450.0,0.00019753,2]
[359847076,1746371443859,-450.0,0.00019753,2]
[359847077,1746371443869,-450.0,0.00019753,2]
[359847078,1746371443880,-450.0,0.00019753,2]
[359847079,1746371443890,-572.79,0.00019753,2]
[359847080,1746371443900,-948.05,0.00019753,2]
[359847081,1746371443909,-450.0,0.00019753,2]
[359847082,1746371443920,-450.0,0.00019753,2]
[359847083,1746371443931,-659.42,0.00019753,2]
[359847084,1746371443941,-195.03,0.00019753,2]
[359847085,1746371443951,-17179.62,0.00019753,2]
[359847086,1746371443962,-150.02,0.00019753,2]
[359847087,1746371443971,-450.0,0.00019753,2]
[359847088,1746371443981,-852.95,0.00019753,2]
[359847089,1746371443990,-450.0,0.00019753,2]
[359847090,1746371443999,-450.0,0.00019753,2]
[359847091,1746371444009,-450.0,0.00019753,2]
[359847092,1746371444018,-3750.44,0.00019753,2]
[359847093,1746371444027,-450.0,0.00019753,2]
[359847094,1746371444037,-450.0,0.00019753,2]
[359847095,1746371444047,-450.0,0.00019753,2]
[359847096,1746371444056,-227.96,0.00019753,2]
[359847097,1746371444065,-450.0,0.00019753,2]
[359847098,1746371444075,-2709.22,0.00019753,2]
[359847099,1746371444085,-227.27152679,0.00019753,2]
[359847100,1746371444094,-450.0,0.00019753,2]
[359847101,1746371444103,-526.64,0.00019753,2]
[359847102,1746371444113,-470.0,0.00019753,2]
[359847103,1746371444122,-372.45,0.00019753,2]
[359847104,1746371444131,-450.0,0.00019753,2]
[359847105,1746371444140,-450.0,0.00019753,2]
[359847106,1746371444150,-161.6,0.00019753,2]
[359847107,1746371444159,-450.0,0.00019753,2]
[359847108,1746371444168,-598.99,0.00019753,2]
[359847109,1746371444177,-450.0,0.00019753,2]
[359847110,1746371444186,-450.0,0.00019753,2]
[359847111,1746371444195,-450.0,0.00019753,2]
[359847112,1746371444205,-875.32,0.00019753,2]
[359847113,1746371444214,-450.0,0.00019753,2]
[359847114,1746371444223,-527.66,0.00019753,2]
[359847115,1746371444232,-450.0,0.00019753,2]
[359847116,1746371444242,-392.65372721,0.00019753,2]
[359847117,1746371444252,-450.0,0.00019753,2]
[359847118,1746371444262,-450.0,0.00019753,2]
[359847119,1746371444271,-450.0,0.00019753,2]
[359847120,1746371444282,-450.0,0.00019753,2]
[359847121,1746371444292,-497.04236419,0.00019753,2]
[359847122,1746371444301,-30743.51,0.00019753,2]
[359847123,1746371444310,-535.2,0.00019753,2]
[359847124,1746371444319,-610.51,0.00019753,2]
[359847125,1746371444329,-450.0,0.00019753,2]
[359847126,1746371444338,-450.0,0.00019753,2]
[359847127,1746371444348,-450.0,0.00019753,2]
[359847128,1746371444358,-450.0,0.00019753,2]
[359847129,1746371444367,-450.0,0.00019753,2]
[359847130,1746371444376,-574.65,0.00019753,2]
[359847131,1746371444385,-450.0,0.00019753,2]
[359847132,1746371444395,-226.06,0.00019753,2]
[359847133,1746371444404,-450.0,0.00019753,2]
[359847134,1746371444413,-931.48,0.00019753,2]
[359847135,1746371444423,-1190.44,0.00019753,2]
[359847136,1746371444434,-450.0,0.00019753,2]
[359847137,1746371444444,-450.0,0.00019753,2]
[359847138,1746371444454,-450.0,0.00019753,2]
[359847139,1746371444463,-450.0,0.00019753,2]
[359847140,1746371444474,-450.0,0.00019753,2]
[359847141,1746371444484,-450.0,0.00019753,2]
[359847142,1746371444493,-450.0,0.00019753,2]
[359847143,1746371444503,-450.0,0.00019753,2]
[359847144,1746371444514,-450.0,0.00019753,2]
[359847145,1746371444523,-450.0,0.00019753,2]
[359847146,1746371444533,-450.0,0.00019753,2]
[359847147,1746371444543,-450.0,0.00019753,2]
[359847148,1746371444552,-500.0,0.00019753,2]
[359847149,1746371444562,-150.0,0.00019756,2]
[359847150,1746371444572,-150.0,0.00019757,2]
[359847151,1746371444581,-150.0,0.00019759,2]
[359847152,1746371444591,-150.0,0.00019761,2]
[359847153,1746371444600,-150.0,0.00019764,2]
[359847154,1746371444610,-150.0,0.00019769,2]
[359847155,1746371444619,-150.0,0.00019769,2]
[359847156,1746371444629,-500.0,0.00019771,2]
[359847157,1746371444638,-500.0,0.00019771,2]
[359847158,1746371444647,-500.0,0.00019771,2]
[359847159,1746371444656,-500.0,0.00019773,2]
[359847160,1746371444665,-387.77882415,0.00019773,2]
[359847161,1746371444674,-158.62819397,0.00019773,2]
[359847162,1746371444684,-500.0,0.00019773,2]
[359847163,1746371444693,-166.0049904,0.00019773,2]
[359847164,1746371444702,-500.0,0.00019773,2]
[359847165,1746371444711,-500.0,0.00019773,2]
[359847166,1746371444720,-486.31580339,0.00019773,2]
[359847167,1746371444729,-558.63313616,0.00019773,2]
[359847168,1746371444739,-500.0,0.00019773,2]
[359847169,1746371444748,-500.0,0.00019773,2]
[359847170,1746371444757,-500.0,0.00019773,2]
[359847171,1746371444767,-500.0,0.00019773,2]
[359847172,1746371444776,-500.99256753,0.00019773,2]
[359847173,1746371444785,-500.0,0.00019773,2]
[359847174,1746371444795,-359.79515288,0.00019773,2]
[359847175,1746371444804,-500.0,0.00019773,2]
[359847176,1746371444813,-500.0,0.00019773,2]
[359847177,1746371444823,-500.0,0.00019773,2]
[359847178,1746371444833,-150.0,0.00019773,2]
[359847179,1746371444843,-150.0,0.00019776,2]
[359847180,1746371444852,-150.0,0.00019778,2]
[359847181,1746371444863,-500.0,0.00019779,2]
[359847182,1746371444872,-500.0,0.00019779,2]
[359847183,1746371444882,-500.0,0.00019779,2]
[359847184,1746371444891,-450.0,0.0001978,2]
[359847185,1746371444901,-450.0,0.0001978,2]
[359847186,1746371444911,-261.21,0.0001978,2]
[359847187,1746371444920,-462.73,0.0001978,2]
[359847188,1746371444930,-450.0,0.0001978,2]
[359847189,1746371444939,-450.0,0.0001978,2]
[359847190,1746371444949,-476.54,0.0001978,2]
[359847191,1746371444959,-478.04,0.0001978,2]
[359847192,1746371444969,-450.0,0.0001978,2]
[359847193,1746371444979,-450.0,0.0001978,2]
[359847194,1746371444988,-450.0,0.0001978,2]
[359847195,1746371444997,-450.0,0.0001978,2]
[359847196,1746371445006,-450.0,0.0001978,2]
[359847197,1746371445016,-1166.68,0.0001978,2]
[359847198,1746371445025,-263.44,0.0001978,2]
[359847199,1746371445035,-268.81,0.0001978,2]
[359847200,1746371445044,-150.0,0.0001978,2]
[359847201,1746371445053,-450.0,0.0001978,2]
[359847202,1746371445063,-450.0,0.0001978,2]
[359847203,1746371445073,-450.0,0.0001978,2]
[359847204,1746371445083,-288.99,0.0001978,2]
[359847205,1746371445092,-450.0,0.0001978,2]
[359847206,1746371445102,-1138.88,0.0001978,2]
[359847207,1746371445112,-450.0,0.0001978,2]
[359847208,1746371445121,-721.57,0.0001978,2]
[359847209,1746371445131,-450.0,0.0001978,2]
[359847210,1746371445141,-450.0,0.0001978,2]
[359847211,1746371445151,-354.18,0.0001978,2]
[359847212,1746371445161,-450.0,0.0001978,2]
[359847213,1746371445170,-450.0,0.0001978,2]
[359847214,1746371445179,-948.05,0.0001978,2]
[359847216,1746371445189,-323.91,0.0001978,2]
[359847217,1746371445198,-450.0,0.0001978,2]
[359847218,1746371445208,-659.42,0.0001978,2]
[359847219,1746371445218,-17179.62,0.0001978,2]
[359847221,1746371445227,-450.0,0.0001978,2]
[359847222,1746371445236,-852.95,0.0001978,2]
[359847223,1746371445245,-450.0,0.0001978,2]
[359847225,1746371445255,-450.0,0.0001978,2]
[359847227,1746371445265,-450.0,0.0001978,2]
[359847229,1746371445274,-3750.44,0.0001978,2]
[359847231,1746371445284,-450.0,0.0001978,2]
[359847233,1746371445293,-450.0,0.0001978,2]
[359847234,1746371445303,-470.0,0.0001978,2]
[359847235,1746371445312,-450.0,0.0001978,2]
[359847236,1746371445321,-2709.22,0.0001978,2]
[359847237,1746371445331,-450.0,0.0001978,2]
[359847238,1746371445342,-450.0,0.0001978,2]
[359847239,1746371445351,-450.0,0.0001978,2]
[359847240,1746371445362,-495.7,0.0001978,2]
[359847241,1746371445372,-450.0,0.0001978,2]
[359847242,1746371445382,-450.0,0.0001978,2]
[359847243,1746371445391,-875.32,0.0001978,2]
[359847244,1746371445401,-450.0,0.0001978,2]
[359847245,1746371445410,-527.66,0.0001978,2]
[359847246,1746371445420,-450.0,0.0001978,2]
[359847247,1746371445433,-450.0,0.0001978,2]
[359847248,1746371445443,-450.0,0.0001978,2]
[359847249,1746371445453,-30743.51,0.0001978,2]
[359847250,1746371445463,-610.51,0.0001978,2]
[359847251,1746371445474,-300.86,0.0001978,2]
[359847252,1746371445483,-574.65,0.0001978,2]
[359847253,1746371445493,-931.48,0.0001978,2]
[359847254,1746371445505,-1190.44,0.0001978,2]
[359847255,1746371445515,-450.0,0.0001978,2]
[359847256,1746371445524,-450.0,0.0001978,2]
[359847257,1746371445534,-450.0,0.0001978,2]
[359847258,1746371445543,-450.0,0.0001978,2]
[359847259,1746371445553,-450.0,0.0001978,2]
[359847260,1746371445563,-320.49748709,0.0001978,2]
[359847261,1746371445572,-450.0,0.0001978,2]
[359847262,1746371445582,-177.61409827,0.0001978,2]
[359847263,1746371445592,-450.0,0.0001978,2]
[359847265,1746371445602,-502.01,0.0001978,2]
[359847266,1746371445611,-150.0,0.00019781,2]
[359847267,1746371445621,-150.0,0.00019782,2]
[359847268,1746371445631,-150.0,0.00019788,2]
[359847269,1746371445640,-150.0,0.00019789,2]
[359847270,1746371445649,-150.0,0.00019791,2]
[359847271,1746371445659,-150.0,0.00019791,2]
[359847272,1746371445668,-797.0,0.00019799,2]
[359847273,1746371445678,-550.0,0.00019799,2]
[359847274,1746371445687,-182.151,0.00019799,2]
[359847275,1746371445697,-915.0,0.00019799,2]
[359847277,1746371445705,-581.0,0.00019799,2]
[359847279,1746371445715,-1451.0,0.00019799,2]
[359847281,1746371445724,-150.0,0.00019801,2]
[359847283,1746371445733,-150.0,0.00019806,2]
[359847285,1746371445742,-444.0187728,0.00019808,2]
[359847287,1746371445752,-450.0,0.00019808,2]
[359847289,1746371445761,-462.73,0.00019808,2]
[359847291,1746371445770,-450.0,0.00019808,2]
[359847293,1746371445780,-450.0,0.00019808,2]
[359847296,1746371445789,-476.54,0.00019808,2]
[359847299,1746371445798,-478.04,0.00019808,2]
[359847302,1746371445807,-450.0,0.00019808,2]
[359847305,1746371445816,-450.0,0.00019808,2]
[359847307,1746371445826,-450.0,0.00019808,2]
[359847309,1746371445835,-450.0,0.00019808,2]
[359847311,1746371445845,-1166.68,0.00019808,2]
[359847313,1746371445854,-450.0,0.00019808,2]
[359847315,1746371445863,-595.33,0.00019808,2]
[359847317,1746371445872,-450.0,0.00019808,2]
[359847319,1746371445882,-450.0,0.00019808,2]
[359847321,1746371445892,-1138.88,0.00019808,2]
[359847323,1746371445902,-450.0,0.00019808,2]
[359847325,1746371445912,-721.57,0.00019808,2]
[359847326,1746371445921,-450.0,0.00019808,2]
[359847328,1746371445930,-450.0,0.00019808,2]
[359847330,1746371445939,-450.0,0.00019808,2]
[359847332,1746371445949,-948.05,0.00019808,2]
[359847334,1746371445958,-450.0,0.00019808,2]
[359847335,1746371445967,-659.42,0.00019808,2]
[359847337,1746371445977,-17179.62,0.00019808,2]
[359847339,1746371445986,-450.0,0.00019808,2]
[359847341,1746371445996,-852.95,0.00019808,2]
[359847343,1746371446005,-450.0,0.00019808,2]
[359847345,1746371446014,-450.0,0.00019808,2]
[359847347,1746371446024,-244.38,0.00019808,2]
[359847349,1746371446033,-3750.44,0.00019808,2]
[359847351,1746371446042,-450.0,0.00019808,2]
[359847353,1746371446051,-450.0,0.00019808,2]
[359847355,1746371446061,-450.0,0.00019808,2]
[359847357,1746371446070,-2709.22,0.00019808,2]
[359847359,1746371446081,-221.71,0.00019808,2]
[359847361,1746371446090,-450.0,0.00019808,2]
[359847363,1746371446099,-557.97,0.00019808,2]
[359847365,1746371446109,-461.44228444,0.00019808,2]
[359847367,1746371446118,-363.51,0.00019808,2]
[359847369,1746371446128,-875.32,0.00019808,2]
[359847371,1746371446138,-450.0,0.00019808,2]
[359847373,1746371446147,-527.66,0.00019808,2]
[359847375,1746371446156,-450.0,0.00019808,2]
[359847392,1746371446311,-450.0,0.00019808,2]
[359847394,1746371446321,-28912.80399819,0.00019808,2]
[359847421,1746371446541,-565.28,0.0001978,2]
[359847423,1746371446551,-1830.70600181,0.00019808,2]
[359847425,1746371446561,-403.13020612,0.00019808,2]
[359847427,1746371446572,-207.37979388,0.00019808,2]
[359847429,1746371446582,-574.65,0.00019808,2]
[359847431,1746371446592,-616.45530727,0.00019808,2]
[359847434,1746371446611,-315.02469273,0.00019808,2]
[359847436,1746371446620,-132.70476727,0.00019808,2]
[359847468,1746371446917,-357.08179979,0.00019687,2]
[359847470,1746371446927,-546.78820021,0.00019749,2]
[359847472,1746371446938,-4679.79710131,0.00019749,2]
[359847474,1746371446948,-1057.73523273,0.00019808,2]
[359847476,1746371446958,-450.0,0.00019808,2]
[359847478,1746371446967,-398.99272787,0.00019808,2]
[359847479,1746371446977,-450.0,0.00019808,2]
[359847480,1746371446986,-450.0,0.00019808,2]
[359847481,1746371446996,-450.0,0.00019808,2]
[359847482,1746371447006,-450.0,0.00019808,2]
[359847483,1746371447015,-485.0,0.00019808,2]
[359847484,1746371447024,-150.0,0.0001981,2]
[359847485,1746371447034,-150.0,0.0001981,2]
[359847486,1746371447043,-150.0,0.00019811,2]
[359847487,1746371447053,-150.0,0.00019812,2]
[359847488,1746371447062,-150.0,0.00019812,2]
[359847489,1746371447073,-150.0,0.00019815,2]
[359847490,1746371447082,-3079.552,0.00019817,2]
[359847491,1746371447091,-161.756,0.00019817,2]
[359847493,1746371447101,-150.0,0.00019817,2]
[359847495,1746371447112,-150.0,0.00019817,2]
[359847497,1746371447122,-150.0,0.0001982,2]
[359847499,1746371447133,-177.61409827,0.0001982,2]
[359847501,1746371447143,-150.0,0.00019829,2]
[359847503,1746371447152,-177.75879269,0.0001983,2]
[359847505,1746371447161,-150.0,0.00019831,2]
[359847507,1746371447170,-500.0,0.00019834,2]
[359847509,1746371447179,-350.71526604,0.00019834,2]
[359847511,1746371447189,-500.0,0.00019834,2]
[359847513,1746371447199,-151.0,0.00019835,2]
[359847515,1746371447208,-151.0,0.00019835,2]
[359847517,1746371447217,-151.0,0.00019835,2]
[359847519,1746371447227,-450.0,0.00019835,2]
[359847521,1746371447236,-462.73,0.00019835,2]
[359847523,1746371447245,-450.0,0.00019835,2]
[359847525,1746371447254,-450.0,0.00019835,2]
[359847526,1746371447264,-476.54,0.00019835,2]
[359847528,1746371447274,-478.04,0.00019835,2]
[359847530,1746371447283,-450.0,0.00019835,2]
[359847532,1746371447294,-384.06,0.00019835,2]
[359847535,1746371447304,-450.0,0.00019835,2]
[359847536,1746371447313,-456.59,0.00019835,2]
[359847538,1746371447323,-1166.68,0.00019835,2]
[359847540,1746371447332,-150.0,0.00019835,2]
[359847542,1746371447342,-450.0,0.00019835,2]
[359847545,1746371447352,-450.0,0.00019835,2]
[359847546,1746371447361,-450.0,0.00019835,2]
[359847548,1746371447371,-721.57,0.00019835,2]
[359847550,1746371447381,-450.0,0.00019835,2]
[359847552,1746371447391,-450.0,0.00019835,2]
[359847554,1746371447400,-450.0,0.00019835,2]
[359847556,1746371447410,-948.05,0.00019835,2]
[359847558,1746371447420,-450.0,0.00019835,2]
[359847561,1746371447433,-659.42,0.00019835,2]
[359847563,1746371447443,-17179.62,0.00019835,2]
[359847564,1746371447453,-450.0,0.00019835,2]
[359847566,1746371447463,-852.95,0.00019835,2]
[359847569,1746371447474,-450.0,0.00019835,2]
[359847571,1746371447483,-450.0,0.00019835,2]
[359847573,1746371447493,-3750.44,0.00019835,2]
[359847575,1746371447503,-450.0,0.00019835,2]
[359847577,1746371447515,-450.0,0.00019835,2]
[359847579,1746371447524,-450.0,0.00019835,2]
[359847581,1746371447534,-2709.22,0.00019835,2]
[359847583,1746371447543,-450.0,0.00019835,2]
[359847584,1746371447552,-875.32,0.00019835,2]
[359847586,1746371447561,-450.0,0.00019835,2]
[359847588,1746371447571,-527.66,0.00019835,2]
[359847590,1746371447582,-450.0,0.00019835,2]
[359847592,1746371447593,-30743.51,0.00019835,2]
[359847594,1746371447602,-610.51,0.00019835,2]
[359847596,1746371447612,-574.65,0.00019835,2]
[359847598,1746371447622,-931.48,0.00019835,2]
[359847601,1746371447631,-1190.44,0.00019835,2]
[359847603,1746371447641,-450.0,0.00019835,2]
[359847605,1746371447652,-450.0,0.00019835,2]
[359847607,1746371447662,-450.0,0.00019835,2]
[359847609,1746371447671,-450.0,0.00019835,2]
[359847611,1746371447681,-450.0,0.00019835,2]
[359847613,1746371447691,-150.0,0.00019838,2]
[359847615,1746371447701,-500.0,0.00019839,2]
[359847617,1746371447710,-500.0,0.00019839,2]
[359847619,1746371447719,-200.61211145,0.00019839,2]
[359847621,1746371447729,-151.0,0.0001984,2]
[359847623,1746371447739,-151.0,0.0001984,2]
[359847625,1746371447748,-154.16968,0.0001984,2]
[359847627,1746371447757,-151.0,0.0001984,2]
[359847629,1746371447766,-200.0,0.0001984,2]
[359847630,1746371447775,-200.0,0.0001984,2]
[359847632,1746371447784,-151.0,0.0001984,2]
[359847634,1746371447793,-313.625703,0.0001984,2]
[359847636,1746371447802,-313.625703,0.0001984,2]
[359847638,1746371447811,-151.0,0.0001984,2]
[359847640,1746371447821,-151.0,0.0001984,2]
[359847642,1746371447830,-151.0,0.0001984,2]
[359847644,1746371447840,-151.0,0.0001984,2]
[359847646,1746371447850,-151.0,0.0001984,2]
[359847648,1746371447860,-151.0,0.0001984,2]
[359847650,1746371447869,-151.0,0.0001984,2]
[359847652,1746371447879,-151.0,0.0001984,2]
[359847654,1746371447889,-208.837472,0.0001984,2]
[359847656,1746371447899,-151.0,0.0001984,2]
[359847658,1746371447908,-151.0,0.0001984,2]